[Event "Titled Tuesday Blitz February 07 Late 2023"]
[White "Iljin, Timofey"]
[Black "Javakhadze, Zurab"]
[WhiteFideId "14110180"]
[BlackFideId "13603647"]
[WhiteElo "2329"]
[BlackElo "2459"]
[Result "0-1"]
[Round "03"]
[TimeControl "180+2"]
[Date "2023.02.07"]
[WhiteClock "0:00:03"]
[BlackClock "0:00:34"]

1. d4 {[%clk 0:03:00]}  Nf6 {[%clk 0:02:59]} 2. c4 {[%clk 0:03:01]}  e6 {[%clk 0:02:56]} 3. Nc3 {[%clk 0:03:01]}  Bb4 {[%clk 0:02:54]} 4. e3 {[%clk 0:03:01]}  O-O {[%clk 0:02:51]} 5. a3 {[%clk 0:03:02]}  Bxc3+ {[%clk 0:02:48]} 6. bxc3 {[%clk 0:03:03]}  d6 {[%clk 0:02:47]} 7. Bd3 {[%clk 0:03:04]}  e5 {[%clk 0:02:47]} 8. e4 {[%clk 0:03:05]}  c5 {[%clk 0:02:44]} 9. Ne2 {[%clk 0:03:04]}  Nc6 {[%clk 0:02:45]} 10. Bg5 {[%clk 0:03:01]}  h6 {[%clk 0:02:44]} 11. Bh4 {[%clk 0:03:02]}  cxd4 {[%clk 0:02:32]} 12. cxd4 {[%clk 0:03:01]}  exd4 {[%clk 0:02:33]} 13. O-O {[%clk 0:02:51]}  Ne5 {[%clk 0:02:29]} 14. Nxd4 {[%clk 0:02:44]}  Ng6 {[%clk 0:02:29]} 15. Bg3 {[%clk 0:02:43]}  Re8 {[%clk 0:02:29]} 16. f3 {[%clk 0:02:42]}  Nh5 {[%clk 0:02:26]} 17. Bf2 {[%clk 0:02:42]}  Nhf4 {[%clk 0:02:14]} 18. Kh1 {[%clk 0:02:31]}  Qg5 {[%clk 0:02:10]} 19. Rg1 {[%clk 0:02:29]}  Ne5 {[%clk 0:01:53]} 20. Bf1 {[%clk 0:02:27]}  Qh5 {[%clk 0:01:53]} 21. Nb5 {[%clk 0:02:19]}  Be6 {[%clk 0:01:48]} 22. Nc7 {[%clk 0:02:18]}  Bxc4 {[%clk 0:01:43]} 23. Nxa8 {[%clk 0:01:52]}  Bxf1 {[%clk 0:01:34]} 24. Qxf1 {[%clk 0:01:47]}  Rxa8 {[%clk 0:01:33]} 25. Rd1 {[%clk 0:01:48]}  Nxf3 {[%clk 0:01:24]} 26. Bg3 {[%clk 0:01:01]}  Nxg1 {[%clk 0:01:10]} 27. Bxf4 {[%clk 0:00:53]}  Ne2 {[%clk 0:01:09]} 28. Rd5 {[%clk 0:00:28]}  Qg4 {[%clk 0:01:04]} 29. h3 {[%clk 0:00:25]}  Qxf4 {[%clk 0:01:02]} 30. Qxe2 {[%clk 0:00:26]}  Re8 {[%clk 0:00:59]} 31. Rd4 {[%clk 0:00:13]}  Qc1+ {[%clk 0:00:53]} 32. Kh2 {[%clk 0:00:12]}  Qxa3 {[%clk 0:00:53]} 33. Qb5 {[%clk 0:00:09]}  Re7 {[%clk 0:00:45]} 34. Qf5 {[%clk 0:00:09]}  Qc5 {[%clk 0:00:43]} 35. Rd5 {[%clk 0:00:08]}  Qc7 {[%clk 0:00:42]} 36. Qf4 {[%clk 0:00:09]}  Re5 {[%clk 0:00:42]} 37. Rd4 {[%clk 0:00:08]}  a5 {[%clk 0:00:38]} 38. Qd2 {[%clk 0:00:08]}  b5 {[%clk 0:00:36]} 39. Rd3 {[%clk 0:00:06]}  Rxe4 {[%clk 0:00:35]} 40. Rc3 {[%clk 0:00:04]}  Rc4 {[%clk 0:00:35]} 41. Re3 {[%clk 0:00:03]}  d5+ {[%clk 0:00:34]} 0-1


[Site "https://www.chess.com"]

[Event "Titled Tuesday Blitz February 07 Late 2023"]
[White "Preotu, Razvan"]
[Black "Baches Garcia, Guillermo"]
[WhiteFideId "2613280"]
[BlackFideId "2209764"]
[WhiteElo "2475"]
[BlackElo "2327"]
[Result "0-1"]
[Round "03"]
[TimeControl "180+2"]
[Date "2023.02.07"]
[WhiteClock "0:00:02"]
[BlackClock "0:00:34"]

1. e4 {[%clk 0:02:57]}  c5 {[%clk 0:03:00]} 2. Nf3 {[%clk 0:02:55]}  a6 {[%clk 0:03:00]} 3. c3 {[%clk 0:02:55]}  e6 {[%clk 0:02:59]} 4. d4 {[%clk 0:02:55]}  d5 {[%clk 0:02:59]} 5. e5 {[%clk 0:02:55]}  Nc6 {[%clk 0:02:58]} 6. Bd3 {[%clk 0:02:53]}  Nge7 {[%clk 0:02:45]} 7. O-O {[%clk 0:02:50]}  Nf5 {[%clk 0:02:44]} 8. dxc5 {[%clk 0:02:42]}  Bxc5 {[%clk 0:02:42]} 9. Bg5 {[%clk 0:02:37]}  Qc7 {[%clk 0:02:35]} 10. Qe2 {[%clk 0:02:33]}  h6 {[%clk 0:02:30]} 11. Bf4 {[%clk 0:02:24]}  O-O {[%clk 0:02:23]} 12. Nbd2 {[%clk 0:02:22]}  Ba7 {[%clk 0:02:17]} 13. g4 {[%clk 0:01:56]}  Nfe7 {[%clk 0:02:16]} 14. Bg3 {[%clk 0:01:56]}  b5 {[%clk 0:02:05]} 15. Nh4 {[%clk 0:01:27]}  Bb7 {[%clk 0:01:50]} 16. Ndf3 {[%clk 0:01:27]}  d4 {[%clk 0:01:43]} 17. Qe4 {[%clk 0:01:20]}  g6 {[%clk 0:01:36]} 18. Qf4 {[%clk 0:01:20]}  Kh7 {[%clk 0:01:22]} 19. Qf6 {[%clk 0:01:18]}  Ng8 {[%clk 0:01:07]} 20. Qf4 {[%clk 0:00:52]}  dxc3 {[%clk 0:01:07]} 21. bxc3 {[%clk 0:00:46]}  Rad8 {[%clk 0:01:07]} 22. Rad1 {[%clk 0:00:46]}  Nce7 {[%clk 0:01:03]} 23. Be4 {[%clk 0:00:32]}  Nd5 {[%clk 0:00:56]} 24. Qc1 {[%clk 0:00:29]}  Rc8 {[%clk 0:00:48]} 25. Ng5+ {[%clk 0:00:10]}  hxg5 {[%clk 0:00:42]} 26. Qxg5 {[%clk 0:00:10]}  Nde7 {[%clk 0:00:40]} 27. Bb1 {[%clk 0:00:02]}  Qc6 {[%clk 0:00:34]} 0-1


[Site "https://www.chess.com"]

[Event "Titled Tuesday Blitz February 07 Late 2023"]
[White "Shuvalova, Polina"]
[Black "Bochnicka, Vladimir"]
[WhiteFideId "24171760"]
[BlackFideId "14943450"]
[WhiteElo "2484"]
[BlackElo "2327"]
[Result "0-1"]
[Round "03"]
[TimeControl "180+2"]
[Date "2023.02.07"]
[WhiteClock "0:01:19"]
[BlackClock "0:01:28"]

1. e4 {[%clk 0:03:00]}  c5 {[%clk 0:02:59]} 2. Nf3 {[%clk 0:02:50]}  Nc6 {[%clk 0:02:59]} 3. Bb5 {[%clk 0:02:48]}  e6 {[%clk 0:02:58]} 4. Bxc6 {[%clk 0:02:46]}  bxc6 {[%clk 0:02:59]} 5. b3 {[%clk 0:02:47]}  d5 {[%clk 0:02:51]} 6. Qe2 {[%clk 0:02:44]}  Ne7 {[%clk 0:02:47]} 7. O-O {[%clk 0:02:40]}  Ng6 {[%clk 0:02:47]} 8. d3 {[%clk 0:02:37]}  Be7 {[%clk 0:02:45]} 9. Bb2 {[%clk 0:02:35]}  O-O {[%clk 0:02:44]} 10. Nc3 {[%clk 0:02:32]}  e5 {[%clk 0:02:40]} 11. exd5 {[%clk 0:02:27]}  cxd5 {[%clk 0:02:35]} 12. Nxe5 {[%clk 0:02:21]}  Nf4 {[%clk 0:01:58]} 13. Qf3 {[%clk 0:02:17]}  Bg5 {[%clk 0:01:53]} 14. Rfe1 {[%clk 0:01:37]}  Be6 {[%clk 0:01:39]} 15. Ne2 {[%clk 0:01:19]}  Nxe2+ {[%clk 0:01:34]} 16. Rxe2 {[%clk 0:01:19]}  d4 {[%clk 0:01:28]} 0-1


[Site "https://www.chess.com"]

[Event "Titled Tuesday Blitz February 07 Late 2023"]
[White "Papasimakopoulos, Alexandros"]
[Black "Urbina Perez, Juan Antonio"]
[WhiteFideId "4244125"]
[BlackFideId "2217368"]
[WhiteElo "2401"]
[BlackElo "2266"]
[Result "1-0"]
[Round "03"]
[TimeControl "180+2"]
[Date "2023.02.07"]
[WhiteClock "0:00:16"]
[BlackClock "0:00:26"]

1. Nf3 {[%clk 0:03:00]}  d5 {[%clk 0:02:58]} 2. b3 {[%clk 0:03:01]}  Bf5 {[%clk 0:02:56]} 3. Bb2 {[%clk 0:02:59]}  e6 {[%clk 0:02:56]} 4. e3 {[%clk 0:02:59]}  h6 {[%clk 0:02:56]} 5. Be2 {[%clk 0:02:57]}  Nf6 {[%clk 0:02:57]} 6. c4 {[%clk 0:02:56]}  c6 {[%clk 0:02:56]} 7. O-O {[%clk 0:02:57]}  Be7 {[%clk 0:02:56]} 8. d4 {[%clk 0:02:58]}  O-O {[%clk 0:02:56]} 9. Nc3 {[%clk 0:02:58]}  Nbd7 {[%clk 0:02:56]} 10. Ne5 {[%clk 0:02:59]}  a5 {[%clk 0:02:53]} 11. f4 {[%clk 0:02:58]}  Ne4 {[%clk 0:02:51]} 12. Bf3 {[%clk 0:02:55]}  Nxc3 {[%clk 0:02:47]} 13. Bxc3 {[%clk 0:02:56]}  Bd6 {[%clk 0:02:46]} 14. g4 {[%clk 0:02:55]}  Bh7 {[%clk 0:02:44]} 15. Kh1 {[%clk 0:02:54]}  f6 {[%clk 0:02:41]} 16. Nxd7 {[%clk 0:02:54]}  Qxd7 {[%clk 0:02:42]} 17. Qe2 {[%clk 0:02:47]}  Qe7 {[%clk 0:02:42]} 18. e4 {[%clk 0:02:44]}  dxe4 {[%clk 0:02:22]} 19. Bxe4 {[%clk 0:02:45]}  Rfe8 {[%clk 0:02:18]} 20. Bxh7+ {[%clk 0:02:45]}  Kxh7 {[%clk 0:02:19]} 21. Rae1 {[%clk 0:02:42]}  Bb4 {[%clk 0:02:19]} 22. Qd3+ {[%clk 0:02:32]}  Kh8 {[%clk 0:02:18]} 23. f5 {[%clk 0:02:29]}  Qd7 {[%clk 0:01:59]} 24. fxe6 {[%clk 0:02:16]}  Rxe6 {[%clk 0:02:00]} 25. Rd1 {[%clk 0:01:47]}  Rae8 {[%clk 0:01:52]} 26. Bxb4 {[%clk 0:01:47]}  axb4 {[%clk 0:01:51]} 27. Qf5 {[%clk 0:01:46]}  Qe7 {[%clk 0:01:31]} 28. d5 {[%clk 0:01:45]}  cxd5 {[%clk 0:01:31]} 29. cxd5 {[%clk 0:01:45]}  Re5 {[%clk 0:01:27]} 30. Qf4 {[%clk 0:01:29]}  Rd8 {[%clk 0:01:22]} 31. Rd4 {[%clk 0:01:26]}  Rexd5 {[%clk 0:01:15]} 32. Rxb4 {[%clk 0:01:23]}  Rd1 {[%clk 0:01:15]} 33. Rc4 {[%clk 0:00:55]}  Qe2 {[%clk 0:01:03]} 34. Rc1 {[%clk 0:00:49]}  Rxc1 {[%clk 0:01:02]} 35. Rxc1 {[%clk 0:00:36]}  Rd1+ {[%clk 0:00:57]} 36. Rxd1 {[%clk 0:00:35]}  Qxd1+ {[%clk 0:00:58]} 37. Kg2 {[%clk 0:00:36]}  Qe2+ {[%clk 0:00:57]} 38. Kg3 {[%clk 0:00:36]}  Qxa2 {[%clk 0:00:50]} 39. Qb8+ {[%clk 0:00:36]}  Kh7 {[%clk 0:00:51]} 40. Qxb7 {[%clk 0:00:36]}  Qe2 {[%clk 0:00:48]} 41. Qd5 {[%clk 0:00:30]}  Qe3+ {[%clk 0:00:46]} 42. Qf3 {[%clk 0:00:27]}  Qe5+ {[%clk 0:00:46]} 43. Kh3 {[%clk 0:00:25]}  Qb2 {[%clk 0:00:46]} 44. Qd3+ {[%clk 0:00:24]}  Kh8 {[%clk 0:00:45]} 45. Kg3 {[%clk 0:00:22]}  Qe5+ {[%clk 0:00:44]} 46. Kf3 {[%clk 0:00:22]}  Qxh2 {[%clk 0:00:44]} 47. b4 {[%clk 0:00:20]}  Qh1+ {[%clk 0:00:41]} 48. Kf4 {[%clk 0:00:17]}  Qc6 {[%clk 0:00:36]} 49. b5 {[%clk 0:00:17]}  Qc5 {[%clk 0:00:36]} 50. Qd7 {[%clk 0:00:15]}  Qe5+ {[%clk 0:00:33]} 51. Kf3 {[%clk 0:00:15]}  Qc3+ {[%clk 0:00:32]} 52. Ke4 {[%clk 0:00:14]}  Qc4+ {[%clk 0:00:30]} 53. Ke3 {[%clk 0:00:14]}  Qc3+ {[%clk 0:00:30]} 54. Qd3 {[%clk 0:00:13]}  Qc5+ {[%clk 0:00:29]} 55. Kd2 {[%clk 0:00:14]}  Qb4+ {[%clk 0:00:29]} 56. Kc2 {[%clk 0:00:14]}  Kg8 {[%clk 0:00:26]} 57. Qb3+ {[%clk 0:00:13]}  Qxb3+ {[%clk 0:00:24]} 58. Kxb3 {[%clk 0:00:14]}  Kf7 {[%clk 0:00:24]} 59. b6 {[%clk 0:00:15]}  Ke7 {[%clk 0:00:25]} 60. b7 {[%clk 0:00:15]}  Kd7 {[%clk 0:00:26]} 61. b8=Q {[%clk 0:00:16]} 1-0


[Site "https://www.chess.com"]

[Event "Titled Tuesday Blitz February 07 Late 2023"]
[White "Flynn, Jacob"]
[Black "Nazari, Arad"]
[WhiteFideId "2509393"]
[BlackFideId "12577324"]
[WhiteElo "2102"]
[BlackElo "2367"]
[Result "1/2-1/2"]
[Round "03"]
[TimeControl "180+2"]
[Date "2023.02.07"]
[WhiteClock "0:00:22"]
[BlackClock "0:00:20"]

1. d4 {[%clk 0:03:00]}  Nf6 {[%clk 0:02:58]} 2. c4 {[%clk 0:03:00]}  g6 {[%clk 0:02:58]} 3. Nc3 {[%clk 0:03:00]}  d5 {[%clk 0:02:58]} 4. Nf3 {[%clk 0:02:53]}  Bg7 {[%clk 0:02:57]} 5. cxd5 {[%clk 0:02:52]}  Nxd5 {[%clk 0:02:57]} 6. e3 {[%clk 0:02:47]}  O-O {[%clk 0:02:55]} 7. Bc4 {[%clk 0:02:43]}  Nxc3 {[%clk 0:02:56]} 8. bxc3 {[%clk 0:02:43]}  c5 {[%clk 0:02:56]} 9. O-O {[%clk 0:02:43]}  Nc6 {[%clk 0:02:55]} 10. h3 {[%clk 0:02:34]}  Qa5 {[%clk 0:02:53]} 11. Qb3 {[%clk 0:02:25]}  cxd4 {[%clk 0:02:40]} 12. cxd4 {[%clk 0:02:24]}  Qh5 {[%clk 0:02:34]} 13. Be2 {[%clk 0:02:05]}  e5 {[%clk 0:02:34]} 14. dxe5 {[%clk 0:01:59]}  Nxe5 {[%clk 0:02:32]} 15. Bb2 {[%clk 0:01:59]}  Be6 {[%clk 0:02:18]} 16. Qa3 {[%clk 0:01:48]}  Rfe8 {[%clk 0:01:46]} 17. Nd4 {[%clk 0:01:35]}  Qh4 {[%clk 0:01:27]} 18. Nxe6 {[%clk 0:01:33]}  Rxe6 {[%clk 0:01:27]} 19. Bd4 {[%clk 0:01:22]}  Nc6 {[%clk 0:01:24]} 20. Bxg7 {[%clk 0:01:20]}  Kxg7 {[%clk 0:01:25]} 21. Qb2+ {[%clk 0:01:19]}  Qf6 {[%clk 0:01:23]} 22. Rab1 {[%clk 0:01:18]}  Qxb2 {[%clk 0:01:20]} 23. Rxb2 {[%clk 0:01:18]}  b6 {[%clk 0:01:20]} 24. Rc1 {[%clk 0:01:15]}  Rd8 {[%clk 0:01:16]} 25. Rbc2 {[%clk 0:01:12]}  Nb4 {[%clk 0:01:16]} 26. Rc7 {[%clk 0:01:11]}  Rd2 {[%clk 0:01:15]} 27. Bc4 {[%clk 0:01:06]}  Rf6 {[%clk 0:01:15]} 28. f4 {[%clk 0:01:02]}  a5 {[%clk 0:01:13]} 29. a3 {[%clk 0:00:57]}  Nc2 {[%clk 0:01:06]} 30. Re7 {[%clk 0:00:53]}  Nxa3 {[%clk 0:01:02]} 31. Bb3 {[%clk 0:00:50]}  Rd3 {[%clk 0:00:58]} 32. Ba2 {[%clk 0:00:45]}  b5 {[%clk 0:00:44]} 33. Rcc7 {[%clk 0:00:43]}  Nc4 {[%clk 0:00:43]} 34. Bxc4 {[%clk 0:00:43]}  bxc4 {[%clk 0:00:44]} 35. Rxc4 {[%clk 0:00:44]}  Rf5 {[%clk 0:00:38]} 36. g4 {[%clk 0:00:40]}  Rb5 {[%clk 0:00:32]} 37. Rcc7 {[%clk 0:00:39]}  Rd2 {[%clk 0:00:30]} 38. Rxf7+ {[%clk 0:00:38]}  Kg8 {[%clk 0:00:30]} 39. Rg7+ {[%clk 0:00:20]}  Kf8 {[%clk 0:00:30]} 40. Rb7 {[%clk 0:00:20]}  Rc5 {[%clk 0:00:12]} 41. Rgc7 {[%clk 0:00:18]}  Rxc7 {[%clk 0:00:11]} 42. Rxc7 {[%clk 0:00:19]}  Kg8 {[%clk 0:00:11]} 43. Ra7 {[%clk 0:00:19]}  Re2 {[%clk 0:00:11]} 44. Rxa5 {[%clk 0:00:17]}  Rxe3 {[%clk 0:00:12]} 45. Kg2 {[%clk 0:00:17]}  Rd3 {[%clk 0:00:12]} 46. Ra7 {[%clk 0:00:17]}  Rc3 {[%clk 0:00:12]} 47. Kh2 {[%clk 0:00:16]}  Rf3 {[%clk 0:00:12]} 48. f5 {[%clk 0:00:15]}  gxf5 {[%clk 0:00:12]} 49. gxf5 {[%clk 0:00:16]}  Rxf5 {[%clk 0:00:12]} 50. Ra3 {[%clk 0:00:15]}  Rb5 {[%clk 0:00:13]} 51. Kg2 {[%clk 0:00:16]}  Kg7 {[%clk 0:00:12]} 52. Rf3 {[%clk 0:00:15]}  Kg6 {[%clk 0:00:13]} 53. Kg3 {[%clk 0:00:14]}  Kg5 {[%clk 0:00:14]} 54. Re3 {[%clk 0:00:14]}  h5 {[%clk 0:00:13]} 55. Rf3 {[%clk 0:00:14]}  h4+ {[%clk 0:00:14]} 56. Kg2 {[%clk 0:00:14]}  Rb2+ {[%clk 0:00:14]} 57. Rf2 {[%clk 0:00:15]}  Rb3 {[%clk 0:00:14]} 58. Rf3 {[%clk 0:00:15]}  Rb4 {[%clk 0:00:15]} 59. Rf2 {[%clk 0:00:15]}  Re4 {[%clk 0:00:14]} 60. Rf3 {[%clk 0:00:16]}  Re2+ {[%clk 0:00:14]} 61. Rf2 {[%clk 0:00:16]}  Rxf2+ {[%clk 0:00:15]} 62. Kxf2 {[%clk 0:00:17]}  Kf4 {[%clk 0:00:16]} 63. Kg1 {[%clk 0:00:18]}  Kg3 {[%clk 0:00:16]} 64. Kh1 {[%clk 0:00:19]}  Kxh3 {[%clk 0:00:17]} 65. Kg1 {[%clk 0:00:19]}  Kg3 {[%clk 0:00:18]} 66. Kh1 {[%clk 0:00:20]}  h3 {[%clk 0:00:18]} 67. Kg1 {[%clk 0:00:21]}  h2+ {[%clk 0:00:19]} 68. Kh1 {[%clk 0:00:22]}  Kh3 {[%clk 0:00:20]} 1/2-1/2


[Site "https://www.chess.com"]

[Event "Titled Tuesday Blitz February 07 Late 2023"]
[White "Vlassov, Nikolai"]
[Black "CheckBits"]
[WhiteFideId "4103360"]
[WhiteElo "2283"]
[BlackElo "2403"]
[Result "1-0"]
[Round "03"]
[TimeControl "180+2"]
[Date "2023.02.07"]
[WhiteClock "0:01:08"]
[BlackClock "0:00:01"]

1. e4 {[%clk 0:03:00]}  e5 {[%clk 0:02:50]} 2. Bc4 {[%clk 0:03:00]}  Nf6 {[%clk 0:02:50]} 3. d3 {[%clk 0:02:59]}  Nc6 {[%clk 0:02:47]} 4. Nf3 {[%clk 0:02:59]}  Bc5 {[%clk 0:02:45]} 5. Bg5 {[%clk 0:02:58]}  h6 {[%clk 0:02:44]} 6. Bh4 {[%clk 0:02:58]}  d6 {[%clk 0:02:43]} 7. Nc3 {[%clk 0:02:58]}  a6 {[%clk 0:02:43]} 8. Nd5 {[%clk 0:02:56]}  g5 {[%clk 0:02:42]} 9. Nxg5 {[%clk 0:02:56]}  Nxd5 {[%clk 0:02:36]} 10. Qh5 {[%clk 0:02:56]}  Qd7 {[%clk 0:02:01]} 11. Bxd5 {[%clk 0:02:50]}  Nd8 {[%clk 0:01:58]} 12. h3 {[%clk 0:02:26]}  c6 {[%clk 0:01:51]} 13. Bb3 {[%clk 0:02:26]}  d5 {[%clk 0:01:31]} 14. O-O-O {[%clk 0:02:18]}  Be7 {[%clk 0:01:22]} 15. Nf3 {[%clk 0:01:52]}  Qd6 {[%clk 0:00:17]} 16. Bxe7 {[%clk 0:01:47]}  Qxe7 {[%clk 0:00:15]} 17. exd5 {[%clk 0:01:42]}  cxd5 {[%clk 0:00:10]} 18. Rhe1 {[%clk 0:01:41]}  O-O {[%clk 0:00:04]} 19. Qxh6 {[%clk 0:01:35]}  f6 {[%clk 0:00:01]} 20. Bxd5+ {[%clk 0:01:33]}  Be6 {[%clk 0:00:01]} 21. Qg6+ {[%clk 0:01:22]}  Qg7 {[%clk 0:00:01]} 22. Qe4 {[%clk 0:01:15]}  Rc8 {[%clk 0:00:01]} 23. Nh4 {[%clk 0:01:08]} 1-0


[Site "https://www.chess.com"]

[Event "Titled Tuesday Blitz February 07 Late 2023"]
[White "Gutkin, Ilya"]
[Black "Godzwon, Iwo"]
[WhiteFideId "16203470"]
[BlackFideId "21802483"]
[WhiteElo "2273"]
[BlackElo "2394"]
[Result "0-1"]
[Round "03"]
[TimeControl "180+2"]
[Date "2023.02.07"]
[WhiteClock "0:00:03"]
[BlackClock "0:01:40"]

1. Nf3 {[%clk 0:03:00]}  Nf6 {[%clk 0:03:00]} 2. g3 {[%clk 0:03:01]}  g6 {[%clk 0:03:00]} 3. b3 {[%clk 0:03:01]}  Bg7 {[%clk 0:03:01]} 4. Bb2 {[%clk 0:03:02]}  O-O {[%clk 0:03:02]} 5. Bg2 {[%clk 0:03:02]}  c6 {[%clk 0:03:01]} 6. c4 {[%clk 0:03:03]}  d5 {[%clk 0:03:02]} 7. O-O {[%clk 0:03:03]}  Nbd7 {[%clk 0:03:00]} 8. Qc2 {[%clk 0:03:01]}  e6 {[%clk 0:02:58]} 9. d3 {[%clk 0:02:59]}  b6 {[%clk 0:02:54]} 10. Nc3 {[%clk 0:02:32]}  Bb7 {[%clk 0:02:42]} 11. e4 {[%clk 0:02:31]}  Rc8 {[%clk 0:02:41]} 12. Rfe1 {[%clk 0:02:27]}  c5 {[%clk 0:02:28]} 13. exd5 {[%clk 0:02:15]}  exd5 {[%clk 0:02:28]} 14. Nd2 {[%clk 0:01:40]}  Nb8 {[%clk 0:02:05]} 15. cxd5 {[%clk 0:01:23]}  Nxd5 {[%clk 0:02:03]} 16. Nxd5 {[%clk 0:01:23]}  Bxd5 {[%clk 0:02:04]} 17. Bxg7 {[%clk 0:01:22]}  Kxg7 {[%clk 0:02:04]} 18. Qc3+ {[%clk 0:01:18]}  f6 {[%clk 0:02:04]} 19. Bxd5 {[%clk 0:01:12]}  Qxd5 {[%clk 0:02:05]} 20. Re7+ {[%clk 0:01:09]}  Rf7 {[%clk 0:02:05]} 21. Rae1 {[%clk 0:01:09]}  Nc6 {[%clk 0:02:04]} 22. Rxf7+ {[%clk 0:01:07]}  Kxf7 {[%clk 0:02:04]} 23. Ne4 {[%clk 0:01:03]}  Nd4 {[%clk 0:02:04]} 24. Re3 {[%clk 0:00:35]}  Re8 {[%clk 0:02:03]} 25. Qc4 {[%clk 0:00:32]}  Rd8 {[%clk 0:01:58]} 26. Nc3 {[%clk 0:00:20]}  Qxc4 {[%clk 0:01:57]} 27. dxc4 {[%clk 0:00:21]}  Nf5 {[%clk 0:01:57]} 28. Re2 {[%clk 0:00:18]}  Ne7 {[%clk 0:01:55]} 29. Kg2 {[%clk 0:00:16]}  Rd3 {[%clk 0:01:55]} 30. Ne4 {[%clk 0:00:16]}  h6 {[%clk 0:01:55]} 31. Rd2 {[%clk 0:00:16]}  Rxd2 {[%clk 0:01:48]} 32. Nxd2 {[%clk 0:00:16]}  Ke6 {[%clk 0:01:49]} 33. Kf3 {[%clk 0:00:16]}  Nc6 {[%clk 0:01:49]} 34. Ke4 {[%clk 0:00:16]}  Nb4 {[%clk 0:01:48]} 35. a3 {[%clk 0:00:13]}  f5+ {[%clk 0:01:47]} 36. Kf4 {[%clk 0:00:10]}  Nc2 {[%clk 0:01:45]} 37. a4 {[%clk 0:00:09]}  g5+ {[%clk 0:01:42]} 38. Kf3 {[%clk 0:00:09]}  Ke5 {[%clk 0:01:43]} 39. Ke2 {[%clk 0:00:05]}  Kd4 {[%clk 0:01:43]} 40. Nb1 {[%clk 0:00:03]}  Na1 {[%clk 0:01:40]} 0-1


[Site "https://www.chess.com"]

[Event "Titled Tuesday Blitz February 07 Late 2023"]
[White "Rodriguez Fontecha, Marcos"]
[Black "Skvortsov, Andrei"]
[WhiteFideId "2256576"]
[BlackFideId "24108600"]
[WhiteElo "2309"]
[BlackElo "2313"]
[Result "1-0"]
[Round "03"]
[TimeControl "180+2"]
[Date "2023.02.07"]
[WhiteClock "0:00:36"]
[BlackClock "0:00:06"]

1. d4 {[%clk 0:03:00]}  d5 {[%clk 0:03:00]} 2. Bf4 {[%clk 0:03:00]}  c5 {[%clk 0:02:52]} 3. e4 {[%clk 0:02:59]}  dxe4 {[%clk 0:02:30]} 4. d5 {[%clk 0:03:00]}  Nf6 {[%clk 0:02:29]} 5. Nc3 {[%clk 0:03:00]}  a6 {[%clk 0:02:28]} 6. Nge2 {[%clk 0:02:59]}  Bg4 {[%clk 0:02:26]} 7. h3 {[%clk 0:02:59]}  Bh5 {[%clk 0:02:24]} 8. g4 {[%clk 0:02:59]}  Bg6 {[%clk 0:02:24]} 9. Ng3 {[%clk 0:02:59]}  e6 {[%clk 0:02:16]} 10. dxe6 {[%clk 0:02:56]}  Nc6 {[%clk 0:02:15]} 11. g5 {[%clk 0:02:52]}  Nd4 {[%clk 0:02:06]} 12. gxf6 {[%clk 0:02:07]}  Nf3+ {[%clk 0:01:33]} 13. Ke2 {[%clk 0:02:08]}  Nd4+ {[%clk 0:01:33]} 14. Ke3 {[%clk 0:02:06]}  Qxf6 {[%clk 0:01:29]} 15. Ncxe4 {[%clk 0:01:57]}  Qxe6 {[%clk 0:01:24]} 16. c3 {[%clk 0:01:50]}  Nc6 {[%clk 0:00:56]} 17. Kf3 {[%clk 0:01:21]}  Be7 {[%clk 0:00:51]} 18. Qb3 {[%clk 0:01:09]}  Qc8 {[%clk 0:00:43]} 19. Kg2 {[%clk 0:01:05]}  O-O {[%clk 0:00:42]} 20. Re1 {[%clk 0:01:03]}  Rd8 {[%clk 0:00:33]} 21. Kh2 {[%clk 0:01:01]}  h5 {[%clk 0:00:28]} 22. Bg2 {[%clk 0:01:01]}  h4 {[%clk 0:00:27]} 23. Nf1 {[%clk 0:01:00]}  Bf5 {[%clk 0:00:21]} 24. Ne3 {[%clk 0:00:59]}  Be6 {[%clk 0:00:20]} 25. Qc2 {[%clk 0:00:58]}  Qd7 {[%clk 0:00:15]} 26. Rd1 {[%clk 0:00:57]}  Qe8 {[%clk 0:00:15]} 27. Rxd8 {[%clk 0:00:57]}  Rxd8 {[%clk 0:00:16]} 28. Rd1 {[%clk 0:00:57]}  f5 {[%clk 0:00:14]} 29. Ng5 {[%clk 0:00:52]}  Bxg5 {[%clk 0:00:15]} 30. Bxg5 {[%clk 0:00:53]}  Rxd1 {[%clk 0:00:15]} 31. Qxd1 {[%clk 0:00:52]}  Qb8+ {[%clk 0:00:16]} 32. f4 {[%clk 0:00:50]}  Bxa2 {[%clk 0:00:12]} 33. Bd5+ {[%clk 0:00:50]}  Bxd5 {[%clk 0:00:11]} 34. Qxd5+ {[%clk 0:00:51]}  Kh8 {[%clk 0:00:12]} 35. Qxf5 {[%clk 0:00:51]}  Qe8 {[%clk 0:00:11]} 36. Qxc5 {[%clk 0:00:48]}  Kh7 {[%clk 0:00:04]} 37. Bxh4 {[%clk 0:00:43]}  Qf7 {[%clk 0:00:02]} 38. Qf5+ {[%clk 0:00:42]}  Kg8 {[%clk 0:00:02]} 39. Qxf7+ {[%clk 0:00:42]}  Kxf7 {[%clk 0:00:03]} 40. Nc4 {[%clk 0:00:40]}  b5 {[%clk 0:00:04]} 41. Ne5+ {[%clk 0:00:39]}  Nxe5 {[%clk 0:00:04]} 42. fxe5 {[%clk 0:00:40]}  a5 {[%clk 0:00:04]} 43. Bd8 {[%clk 0:00:39]}  a4 {[%clk 0:00:05]} 44. Kg3 {[%clk 0:00:36]}  Ke6 {[%clk 0:00:06]} 45. Kf4 {[%clk 0:00:36]} 1-0


[Site "https://www.chess.com"]

[Event "Titled Tuesday Blitz February 07 Late 2023"]
[White "Martinez Ramirez, Lennis"]
[Black "Huber, Benedikt"]
[WhiteFideId "3509079"]
[BlackFideId "12923583"]
[WhiteElo "2426"]
[BlackElo "2272"]
[Result "1-0"]
[Round "03"]
[TimeControl "180+2"]
[Date "2023.02.07"]
[WhiteClock "0:00:16"]
[BlackClock "0:00:04"]

1. Nf3 {[%clk 0:03:00]}  f5 {[%clk 0:02:54]} 2. d4 {[%clk 0:03:01]}  Nf6 {[%clk 0:02:53]} 3. h3 {[%clk 0:02:59]}  e6 {[%clk 0:02:51]} 4. g4 {[%clk 0:02:53]}  fxg4 {[%clk 0:02:52]} 5. hxg4 {[%clk 0:02:54]}  Nxg4 {[%clk 0:02:53]} 6. Qd3 {[%clk 0:02:54]}  Nf6 {[%clk 0:02:26]} 7. Ng5 {[%clk 0:02:51]}  d5 {[%clk 0:02:11]} 8. Bf4 {[%clk 0:02:31]}  Nc6 {[%clk 0:02:06]} 9. Rxh7 {[%clk 0:02:29]}  Rxh7 {[%clk 0:01:42]} 10. Qg6+ {[%clk 0:02:25]}  Kd7 {[%clk 0:01:42]} 11. Nxh7 {[%clk 0:02:18]}  Nxd4 {[%clk 0:01:27]} 12. Be5 {[%clk 0:01:51]}  Nxh7 {[%clk 0:00:57]} 13. Bxd4 {[%clk 0:01:49]}  Qh4 {[%clk 0:00:52]} 14. Bxg7 {[%clk 0:01:37]}  Bxg7 {[%clk 0:00:27]} 15. Qxg7+ {[%clk 0:01:38]}  Qe7 {[%clk 0:00:28]} 16. Qg6 {[%clk 0:01:36]}  b6 {[%clk 0:00:24]} 17. Nd2 {[%clk 0:01:35]}  Ba6 {[%clk 0:00:22]} 18. Nf3 {[%clk 0:01:35]}  Rf8 {[%clk 0:00:16]} 19. O-O-O {[%clk 0:01:29]}  Kc8 {[%clk 0:00:16]} 20. Qg3 {[%clk 0:01:04]}  Nf6 {[%clk 0:00:13]} 21. Ng5 {[%clk 0:01:01]}  Rg8 {[%clk 0:00:11]} 22. Qe5 {[%clk 0:00:58]}  Ng4 {[%clk 0:00:11]} 23. Qxe6+ {[%clk 0:00:57]}  Qxe6 {[%clk 0:00:12]} 24. Nxe6 {[%clk 0:00:58]}  Nxf2 {[%clk 0:00:12]} 25. Re1 {[%clk 0:00:41]}  Rg1 {[%clk 0:00:12]} 26. Nf4 {[%clk 0:00:37]}  c5 {[%clk 0:00:10]} 27. Nxd5 {[%clk 0:00:35]}  Bb7 {[%clk 0:00:09]} 28. Nf4 {[%clk 0:00:20]}  Kc7 {[%clk 0:00:09]} 29. e3 {[%clk 0:00:20]}  Bf3 {[%clk 0:00:06]} 30. Kd2 {[%clk 0:00:20]}  Ne4+ {[%clk 0:00:06]} 31. Kd3 {[%clk 0:00:19]}  Nf2+ {[%clk 0:00:04]} 32. Kc4 {[%clk 0:00:19]}  Rxf1 {[%clk 0:00:03]} 33. Rxf1 {[%clk 0:00:18]}  Be2+ {[%clk 0:00:04]} 34. Nxe2 {[%clk 0:00:17]}  Ne4 {[%clk 0:00:05]} 35. Kd3 {[%clk 0:00:17]}  Ng3 {[%clk 0:00:04]} 36. Nxg3 {[%clk 0:00:16]} 1-0


[Site "https://www.chess.com"]